[Event "Titled Tuesday Blitz April 12 Late 2022"]
[White "Barria Zuniga, Daniel"]
[Black "Janturin, Artur"]
[WhiteFideId "3400816"]
[BlackFideId "4130022"]
[WhiteElo "2414"]
[BlackElo "2362"]
[Result "1-0"]
[Round "07"]
[TimeControl "180+1"]
[Date "2022.04.13"]
[WhiteClock "0:00:26"]
[BlackClock "0:00:20"]

1. d4 {[%clk 0:02:49]}  e6 {[%clk 0:02:59]} 2. c4 {[%clk 0:02:45]}  b6 {[%clk 0:03:00]} 3. Nf3 {[%clk 0:02:43]}  Bb7 {[%clk 0:03:00]} 4. g3 {[%clk 0:02:44]}  Bb4+ {[%clk 0:03:00]} 5. Nbd2 {[%clk 0:02:42]}  Bxf3 {[%clk 0:02:42]} 6. exf3 {[%clk 0:02:42]}  Nf6 {[%clk 0:02:32]} 7. a3 {[%clk 0:02:37]}  Bxd2+ {[%clk 0:02:31]} 8. Bxd2 {[%clk 0:02:37]}  d5 {[%clk 0:02:31]} 9. c5 {[%clk 0:02:32]}  O-O {[%clk 0:02:17]} 10. Rc1 {[%clk 0:02:18]}  bxc5 {[%clk 0:01:44]} 11. dxc5 {[%clk 0:02:07]}  c6 {[%clk 0:01:39]} 12. b4 {[%clk 0:02:01]}  Nbd7 {[%clk 0:01:33]} 13. Ba6 {[%clk 0:01:54]}  Qc7 {[%clk 0:01:31]} 14. O-O {[%clk 0:01:53]}  e5 {[%clk 0:01:31]} 15. Re1 {[%clk 0:01:53]}  Rae8 {[%clk 0:01:30]} 16. Qa4 {[%clk 0:01:48]}  d4 {[%clk 0:01:26]} 17. Bd3 {[%clk 0:01:31]}  Nd5 {[%clk 0:01:25]} 18. b5 {[%clk 0:01:27]}  Rc8 {[%clk 0:00:45]} 19. bxc6 {[%clk 0:01:03]}  Nb8 {[%clk 0:00:45]} 20. Be4 {[%clk 0:00:54]}  Rfd8 {[%clk 0:00:44]} 21. Ba5 {[%clk 0:00:46]}  Qxc6 {[%clk 0:00:42]} 22. Qxc6 {[%clk 0:00:46]}  Nxc6 {[%clk 0:00:42]} 23. Bxd8 {[%clk 0:00:46]}  Rxd8 {[%clk 0:00:43]} 24. f4 {[%clk 0:00:41]}  f6 {[%clk 0:00:41]} 25. fxe5 {[%clk 0:00:39]}  fxe5 {[%clk 0:00:42]} 26. Rb1 {[%clk 0:00:34]}  Na5 {[%clk 0:00:35]} 27. Rb5 {[%clk 0:00:32]}  Nc4 {[%clk 0:00:32]} 28. c6 {[%clk 0:00:30]}  Nc3 {[%clk 0:00:32]} 29. Rc5 {[%clk 0:00:30]}  Nd2 {[%clk 0:00:31]} 30. c7 {[%clk 0:00:28]}  Rc8 {[%clk 0:00:30]} 31. Bb7 {[%clk 0:00:28]}  Na4 {[%clk 0:00:22]} 32. Bxc8 {[%clk 0:00:26]}  Nxc5 {[%clk 0:00:21]} 33. Be6+ {[%clk 0:00:26]}  Nxe6 {[%clk 0:00:20]} 34. c8=Q+ {[%clk 0:00:26]} 1-0


[Site "https://www.chess.com"]

[Event "Titled Tuesday Blitz April 12 Late 2022"]
[White "Bilan, Danila"]
[Black "Guzman Moneo, Alberto"]
[WhiteFideId "24161918"]
[BlackFideId "2209616"]
[WhiteElo "2164"]
[BlackElo "2157"]
[Result "1/2-1/2"]
[Round "07"]
[TimeControl "180+1"]
[Date "2022.04.13"]
[WhiteClock "0:00:14"]
[BlackClock "0:00:24"]

1. d4 {[%clk 0:03:00]}  Nf6 {[%clk 0:02:58]} 2. Nf3 {[%clk 0:03:00]}  c5 {[%clk 0:02:57]} 3. e3 {[%clk 0:03:00]}  g6 {[%clk 0:02:57]} 4. Be2 {[%clk 0:02:56]}  Bg7 {[%clk 0:02:57]} 5. O-O {[%clk 0:02:56]}  b6 {[%clk 0:02:57]} 6. b3 {[%clk 0:02:56]}  d6 {[%clk 0:02:56]} 7. Bb2 {[%clk 0:02:56]}  O-O {[%clk 0:02:56]} 8. c4 {[%clk 0:02:53]}  cxd4 {[%clk 0:02:45]} 9. Nxd4 {[%clk 0:02:49]}  Bb7 {[%clk 0:02:44]} 10. Nc3 {[%clk 0:02:49]}  Nbd7 {[%clk 0:02:42]} 11. Bf3 {[%clk 0:02:41]}  Bxf3 {[%clk 0:02:39]} 12. Qxf3 {[%clk 0:02:42]}  a6 {[%clk 0:02:33]} 13. Rac1 {[%clk 0:02:36]}  Nc5 {[%clk 0:02:15]} 14. Rfd1 {[%clk 0:02:32]}  Qd7 {[%clk 0:02:10]} 15. h3 {[%clk 0:02:25]}  Rac8 {[%clk 0:02:06]} 16. Rc2 {[%clk 0:02:21]}  Qb7 {[%clk 0:02:02]} 17. Qxb7 {[%clk 0:02:13]}  Nxb7 {[%clk 0:02:01]} 18. Rdc1 {[%clk 0:02:08]}  Nc5 {[%clk 0:01:56]} 19. Nd5 {[%clk 0:02:04]}  Nxd5 {[%clk 0:01:48]} 20. cxd5 {[%clk 0:02:05]}  a5 {[%clk 0:01:39]} 21. a3 {[%clk 0:01:37]}  Ra8 {[%clk 0:01:38]} 22. b4 {[%clk 0:01:32]}  axb4 {[%clk 0:01:36]} 23. axb4 {[%clk 0:01:32]}  Nd3 {[%clk 0:01:36]} 24. Rd1 {[%clk 0:01:24]}  Nxb2 {[%clk 0:01:27]} 25. Rxb2 {[%clk 0:01:24]}  Rfc8 {[%clk 0:01:22]} 26. Rb3 {[%clk 0:01:03]}  Bxd4 {[%clk 0:01:17]} 27. Rxd4 {[%clk 0:00:58]}  Rc2 {[%clk 0:01:00]} 28. Rbd3 {[%clk 0:00:46]}  Ra1+ {[%clk 0:00:54]} 29. Rd1 {[%clk 0:00:41]}  Rxd1+ {[%clk 0:00:54]} 30. Rxd1 {[%clk 0:00:42]}  b5 {[%clk 0:00:44]} 31. Rd4 {[%clk 0:00:37]}  f5 {[%clk 0:00:42]} 32. g4 {[%clk 0:00:31]}  Kf7 {[%clk 0:00:38]} 33. gxf5 {[%clk 0:00:28]}  gxf5 {[%clk 0:00:38]} 34. Kg2 {[%clk 0:00:29]}  Kf6 {[%clk 0:00:38]} 35. Kg3 {[%clk 0:00:22]}  Ke5 {[%clk 0:00:37]} 36. f4+ {[%clk 0:00:19]}  Kf6 {[%clk 0:00:37]} 37. Kf3 {[%clk 0:00:18]}  Rh2 {[%clk 0:00:32]} 38. Kg3 {[%clk 0:00:19]}  Rc2 {[%clk 0:00:29]} 39. Rd3 {[%clk 0:00:14]}  Rc4 {[%clk 0:00:27]} 40. Rb3 {[%clk 0:00:15]}  e6 {[%clk 0:00:25]} 41. dxe6 {[%clk 0:00:14]}  Kxe6 {[%clk 0:00:26]} 42. Kf3 {[%clk 0:00:14]}  Kd5 {[%clk 0:00:25]} 43. Rd3+ {[%clk 0:00:14]}  Kc6 {[%clk 0:00:25]} 44. Rb3 {[%clk 0:00:14]}  Kd5 {[%clk 0:00:25]} 45. Rd3+ {[%clk 0:00:14]}  Kc6 {[%clk 0:00:25]} 46. Rb3 {[%clk 0:00:14]}  Kd5 {[%clk 0:00:24]} 1/2-1/2


[Site "https://www.chess.com"]

[Event "Titled Tuesday Blitz April 12 Late 2022"]
[White "Bluebaum, Matthias"]
[Black "Seo, Jung Min"]
[WhiteFideId "24651516"]
[BlackFideId "1734687"]
[WhiteElo "2550"]
[BlackElo "2401"]
[Result "1-0"]
[Round "07"]
[TimeControl "180+1"]
[Date "2022.04.12"]
[WhiteClock "0:01:14"]
[BlackClock "0:00:24"]

1. b3 {[%clk 0:03:00]}  b6 {[%clk 0:02:59]} 2. Bb2 {[%clk 0:03:01]}  Bb7 {[%clk 0:02:59]} 3. Nf3 {[%clk 0:03:02]}  Nf6 {[%clk 0:02:59]} 4. g3 {[%clk 0:03:02]}  g6 {[%clk 0:03:00]} 5. Bg2 {[%clk 0:03:03]}  Bg7 {[%clk 0:03:00]} 6. c4 {[%clk 0:03:04]}  O-O {[%clk 0:03:00]} 7. O-O {[%clk 0:03:04]}  e6 {[%clk 0:03:01]} 8. d4 {[%clk 0:03:05]}  c5 {[%clk 0:03:00]} 9. dxc5 {[%clk 0:03:02]}  bxc5 {[%clk 0:03:00]} 10. Nc3 {[%clk 0:03:02]}  Qe7 {[%clk 0:02:53]} 11. Na4 {[%clk 0:02:58]}  d6 {[%clk 0:02:52]} 12. Qc2 {[%clk 0:02:57]}  Nbd7 {[%clk 0:02:47]} 13. Rad1 {[%clk 0:02:57]}  Be4 {[%clk 0:02:45]} 14. Qc1 {[%clk 0:02:58]}  Nb6 {[%clk 0:02:45]} 15. Nc3 {[%clk 0:02:58]}  Bc6 {[%clk 0:02:44]} 16. Qa1 {[%clk 0:02:58]}  Rfd8 {[%clk 0:02:43]} 17. Rd2 {[%clk 0:02:57]}  Ne4 {[%clk 0:02:29]} 18. Nxe4 {[%clk 0:02:56]}  Bxb2 {[%clk 0:02:29]} 19. Qxb2 {[%clk 0:02:55]}  Bxe4 {[%clk 0:02:29]} 20. Rfd1 {[%clk 0:02:56]}  a5 {[%clk 0:02:22]} 21. Qc3 {[%clk 0:02:52]}  d5 {[%clk 0:02:07]} 22. Ne5 {[%clk 0:02:48]}  Bxg2 {[%clk 0:02:05]} 23. Kxg2 {[%clk 0:02:41]}  d4 {[%clk 0:01:59]} 24. Qf3 {[%clk 0:02:40]}  Rac8 {[%clk 0:01:52]} 25. Nc6 {[%clk 0:02:39]}  Qc7 {[%clk 0:01:39]} 26. Nxd8 {[%clk 0:02:37]}  Rxd8 {[%clk 0:01:38]} 27. e3 {[%clk 0:02:26]}  e5 {[%clk 0:01:38]} 28. exd4 {[%clk 0:02:27]}  cxd4 {[%clk 0:01:36]} 29. Qf6 {[%clk 0:02:25]}  Nd7 {[%clk 0:01:31]} 30. Qe7 {[%clk 0:02:23]}  Qc8 {[%clk 0:01:20]} 31. f4 {[%clk 0:02:10]}  Re8 {[%clk 0:01:20]} 32. Qd6 {[%clk 0:02:09]}  exf4 {[%clk 0:01:06]} 33. Qxd4 {[%clk 0:02:02]}  Ne5 {[%clk 0:01:02]} 34. Qxe5 {[%clk 0:01:34]}  Rxe5 {[%clk 0:00:51]} 35. Rd8+ {[%clk 0:01:34]}  Qxd8 {[%clk 0:00:48]} 36. Rxd8+ {[%clk 0:01:35]}  Kg7 {[%clk 0:00:48]} 37. Kf3 {[%clk 0:01:36]}  fxg3 {[%clk 0:00:45]} 38. hxg3 {[%clk 0:01:37]}  Kf6 {[%clk 0:00:44]} 39. a3 {[%clk 0:01:27]}  Rc5 {[%clk 0:00:42]} 40. Rd4 {[%clk 0:01:25]}  Ke5 {[%clk 0:00:36]} 41. Ke3 {[%clk 0:01:24]}  f5 {[%clk 0:00:30]} 42. b4 {[%clk 0:01:25]}  axb4 {[%clk 0:00:31]} 43. axb4 {[%clk 0:01:26]}  Rc8 {[%clk 0:00:31]} 44. b5 {[%clk 0:01:25]}  Rc5 {[%clk 0:00:26]} 45. b6 {[%clk 0:01:12]}  Rc6 {[%clk 0:00:25]} 46. b7 {[%clk 0:01:13]}  Rb6 {[%clk 0:00:23]} 47. Rd5+ {[%clk 0:01:13]}  Ke6 {[%clk 0:00:24]} 48. Rb5 {[%clk 0:01:14]} 1-0


[Site "https://www.chess.com"]

[Event "Titled Tuesday Blitz April 12 Late 2022"]
[White "Dahlgren, James Allen"]
[Black "Omariev, Maksim"]
[WhiteFideId "22256873"]
[BlackFideId "4193423"]
[WhiteElo "2091"]
[BlackElo "2498"]
[Result "0-1"]
[Round "07"]
[TimeControl "180+1"]
[Date "2022.04.13"]
[WhiteClock "0:00:04"]
[BlackClock "0:00:33"]

1. d3 {[%clk 0:02:59]}  d5 {[%clk 0:02:58]} 2. f4 {[%clk 0:03:00]}  c5 {[%clk 0:02:57]} 3. Nf3 {[%clk 0:03:00]}  Nc6 {[%clk 0:02:58]} 4. Nc3 {[%clk 0:02:59]}  Nf6 {[%clk 0:02:57]} 5. e4 {[%clk 0:02:59]}  dxe4 {[%clk 0:02:57]} 6. dxe4 {[%clk 0:03:00]}  Qxd1+ {[%clk 0:02:57]} 7. Kxd1 {[%clk 0:03:00]}  Bg4 {[%clk 0:02:57]} 8. Be3 {[%clk 0:02:58]}  O-O-O+ {[%clk 0:02:57]} 9. Ke1 {[%clk 0:02:57]}  e6 {[%clk 0:02:42]} 10. e5 {[%clk 0:02:55]}  Nd5 {[%clk 0:02:37]} 11. Nxd5 {[%clk 0:02:54]}  exd5 {[%clk 0:02:38]} 12. Bb5 {[%clk 0:02:53]}  Bxf3 {[%clk 0:02:32]} 13. gxf3 {[%clk 0:02:54]}  Nb4 {[%clk 0:02:32]} 14. Ba4 {[%clk 0:02:45]}  b5 {[%clk 0:02:28]} 15. Bb3 {[%clk 0:02:37]}  c4 {[%clk 0:02:28]} 16. a3 {[%clk 0:02:35]}  Nc6 {[%clk 0:02:26]} 17. Ba2 {[%clk 0:02:34]}  d4 {[%clk 0:02:22]} 18. Bf2 {[%clk 0:02:27]}  Bc5 {[%clk 0:02:07]} 19. b4 {[%clk 0:02:22]}  Bb6 {[%clk 0:02:06]} 20. Kd2 {[%clk 0:02:11]}  Rhe8 {[%clk 0:01:46]} 21. Rhg1 {[%clk 0:02:10]}  g6 {[%clk 0:01:45]} 22. Rg3 {[%clk 0:01:56]}  Rd7 {[%clk 0:01:43]} 23. Rh3 {[%clk 0:01:56]}  f6 {[%clk 0:01:33]} 24. exf6 {[%clk 0:01:53]}  Rf8 {[%clk 0:01:33]} 25. Bh4 {[%clk 0:01:46]}  h6 {[%clk 0:01:11]} 26. a4 {[%clk 0:01:42]}  a6 {[%clk 0:01:09]} 27. axb5 {[%clk 0:01:39]}  axb5 {[%clk 0:01:10]} 28. Rb1 {[%clk 0:01:13]}  Bc7 {[%clk 0:01:07]} 29. Bg3 {[%clk 0:01:11]}  h5 {[%clk 0:01:06]} 30. f5 {[%clk 0:00:54]}  gxf5 {[%clk 0:00:53]} 31. Rxh5 {[%clk 0:00:42]}  Rxf6 {[%clk 0:00:51]} 32. Bxc7 {[%clk 0:00:31]}  Kxc7 {[%clk 0:00:52]} 33. Re1 {[%clk 0:00:21]}  Rg7 {[%clk 0:00:50]} 34. c3 {[%clk 0:00:18]}  d3 {[%clk 0:00:49]} 35. Bb1 {[%clk 0:00:12]}  Rg2+ {[%clk 0:00:49]} 36. Kd1 {[%clk 0:00:05]}  Kd6 {[%clk 0:00:36]} 37. h4 {[%clk 0:00:04]}  Ne5 {[%clk 0:00:36]} 38. Rg5 {[%clk 0:00:04]}  Rh2 {[%clk 0:00:33]} 0-1


[Site "https://www.chess.com"]

[Event "Titled Tuesday Blitz April 12 Late 2022"]
[White "Dauner, Benedikt"]
[Black "Leitao, Rafael"]
[WhiteFideId "16225899"]
[BlackFideId "2101246"]
[WhiteElo "2514"]
[BlackElo "2683"]
[Result "0-1"]
[Round "07"]
[TimeControl "180+1"]
[Date "2022.04.13"]
[WhiteClock "0:00:02"]
[BlackClock "0:00:09"]

1. d4 {[%clk 0:02:59]}  Nf6 {[%clk 0:02:59]} 2. Nf3 {[%clk 0:02:59]}  e6 {[%clk 0:02:59]} 3. Bf4 {[%clk 0:02:58]}  c5 {[%clk 0:02:58]} 4. c3 {[%clk 0:02:57]}  b6 {[%clk 0:02:57]} 5. Nbd2 {[%clk 0:02:51]}  Bb7 {[%clk 0:02:56]} 6. Nc4 {[%clk 0:02:47]}  d5 {[%clk 0:02:51]} 7. Nce5 {[%clk 0:02:45]}  Be7 {[%clk 0:02:49]} 8. e3 {[%clk 0:02:31]}  O-O {[%clk 0:02:49]} 9. Bd3 {[%clk 0:02:31]}  Ne4 {[%clk 0:02:46]} 10. Nd2 {[%clk 0:02:15]}  f6 {[%clk 0:02:42]} 11. Nef3 {[%clk 0:02:14]}  Nd7 {[%clk 0:02:34]} 12. Qc2 {[%clk 0:02:14]}  f5 {[%clk 0:02:31]} 13. h4 {[%clk 0:02:06]}  Rc8 {[%clk 0:02:28]} 14. h5 {[%clk 0:02:02]}  a6 {[%clk 0:02:17]} 15. Ne5 {[%clk 0:02:01]}  Nxe5 {[%clk 0:02:05]} 16. Bxe5 {[%clk 0:02:02]}  Bf6 {[%clk 0:02:00]} 17. Nf3 {[%clk 0:02:00]}  b5 {[%clk 0:01:50]} 18. h6 {[%clk 0:01:54]}  g6 {[%clk 0:01:50]} 19. Bxf6 {[%clk 0:01:49]}  Qxf6 {[%clk 0:01:49]} 20. Ne5 {[%clk 0:01:50]}  Rc7 {[%clk 0:01:47]} 21. f4 {[%clk 0:01:43]}  Nd6 {[%clk 0:01:34]} 22. g4 {[%clk 0:01:36]}  Rfc8 {[%clk 0:01:26]} 23. gxf5 {[%clk 0:01:24]}  exf5 {[%clk 0:01:23]} 24. Kf2 {[%clk 0:01:10]}  b4 {[%clk 0:01:13]} 25. Qe2 {[%clk 0:00:50]}  a5 {[%clk 0:00:57]} 26. Rag1 {[%clk 0:00:47]}  bxc3 {[%clk 0:00:49]} 27. bxc3 {[%clk 0:00:47]}  cxd4 {[%clk 0:00:48]} 28. cxd4 {[%clk 0:00:48]}  Ne4+ {[%clk 0:00:48]} 29. Bxe4 {[%clk 0:00:47]}  dxe4 {[%clk 0:00:48]} 30. Rd1 {[%clk 0:00:46]}  Bd5 {[%clk 0:00:34]} 31. Rd2 {[%clk 0:00:44]}  Kh8 {[%clk 0:00:34]} 32. Rb1 {[%clk 0:00:43]}  g5 {[%clk 0:00:32]} 33. Qh5 {[%clk 0:00:36]}  gxf4 {[%clk 0:00:30]} 34. exf4 {[%clk 0:00:37]}  Rg8 {[%clk 0:00:28]} 35. Rg1 {[%clk 0:00:24]}  e3+ {[%clk 0:00:25]} 36. Kxe3 {[%clk 0:00:24]}  Rxg1 {[%clk 0:00:24]} 37. Rb2 {[%clk 0:00:18]}  Rg8 {[%clk 0:00:24]} 38. Rb5 {[%clk 0:00:10]}  Qd6 {[%clk 0:00:16]} 39. Qh4 {[%clk 0:00:04]}  Qa3+ {[%clk 0:00:06]} 40. Rb3 {[%clk 0:00:04]}  Qe7 {[%clk 0:00:06]} 41. Qf2 {[%clk 0:00:01]}  Bxb3 {[%clk 0:00:05]} 42. axb3 {[%clk 0:00:01]}  Rc3+ {[%clk 0:00:06]} 43. Kd2 {[%clk 0:00:01]}  Rgc8 {[%clk 0:00:06]} 44. d5 {[%clk 0:00:01]}  Rc2+ {[%clk 0:00:07]} 45. Ke3 {[%clk 0:00:02]}  Rxf2 {[%clk 0:00:07]} 46. Kxf2 {[%clk 0:00:02]}  Qc5+ {[%clk 0:00:08]} 47. Ke2 {[%clk 0:00:02]}  Qxd5 {[%clk 0:00:09]} 48. Ng6+ {[%clk 0:00:02]}  hxg6 {[%clk 0:00:09]} 0-1


[Site "https://www.chess.com"]

[Event "Titled Tuesday Blitz April 12 Late 2022"]
[White "Estrada Nieto, Julian"]
[Black "Broca Jimenez, Fernando"]
[WhiteFideId "5101018"]
[BlackFideId "5104742"]
[WhiteElo "2252"]
[BlackElo "2062"]
[Result "0-1"]
[Round "07"]
[TimeControl "180+1"]
[Date "2022.04.13"]
[WhiteClock "0:01:27"]
[BlackClock "0:00:27"]

1. e4 {[%clk 0:03:00]}  c5 {[%clk 0:02:58]} 2. Nf3 {[%clk 0:03:00]}  g6 {[%clk 0:02:59]} 3. c3 {[%clk 0:02:59]}  Bg7 {[%clk 0:02:58]} 4. d4 {[%clk 0:02:59]}  cxd4 {[%clk 0:02:58]} 5. cxd4 {[%clk 0:03:00]}  d5 {[%clk 0:02:58]} 6. e5 {[%clk 0:03:00]}  Bg4 {[%clk 0:02:58]} 7. Bb5+ {[%clk 0:03:01]}  Nc6 {[%clk 0:02:49]} 8. Bxc6+ {[%clk 0:03:00]}  bxc6 {[%clk 0:02:50]} 9. O-O {[%clk 0:03:01]}  e6 {[%clk 0:02:46]} 10. Nbd2 {[%clk 0:03:00]}  Ne7 {[%clk 0:02:45]} 11. h3 {[%clk 0:03:01]}  Bxf3 {[%clk 0:02:44]} 12. Nxf3 {[%clk 0:03:02]}  O-O {[%clk 0:02:41]} 13. b3 {[%clk 0:03:01]}  Qb6 {[%clk 0:02:39]} 14. Ba3 {[%clk 0:03:00]}  Rfe8 {[%clk 0:02:39]} 15. Bc5 {[%clk 0:02:58]}  Qb7 {[%clk 0:02:38]} 16. Rc1 {[%clk 0:02:53]}  Nf5 {[%clk 0:02:15]} 17. Qd3 {[%clk 0:02:52]}  Bf8 {[%clk 0:01:54]} 18. g4 {[%clk 0:02:46]}  Ng7 {[%clk 0:01:42]} 19. Bxf8 {[%clk 0:02:37]}  Rxf8 {[%clk 0:01:43]} 20. Qe3 {[%clk 0:02:33]}  f5 {[%clk 0:01:32]} 21. Qh6 {[%clk 0:02:31]}  fxg4 {[%clk 0:01:06]} 22. Ng5 {[%clk 0:02:29]}  Nf5 {[%clk 0:01:06]} 23. Qxh7+ {[%clk 0:02:22]}  Qxh7 {[%clk 0:01:06]} 24. Nxh7 {[%clk 0:02:22]}  Kxh7 {[%clk 0:01:03]} 25. Rxc6 {[%clk 0:02:22]}  Nxd4 {[%clk 0:00:59]} 26. Rc7+ {[%clk 0:02:22]}  Kh6 {[%clk 0:00:58]} 27. hxg4 {[%clk 0:02:23]}  Kg5 {[%clk 0:00:54]} 28. Kg2 {[%clk 0:02:22]}  Kxg4 {[%clk 0:00:52]} 29. Rg7 {[%clk 0:02:15]}  g5 {[%clk 0:00:47]} 30. Rc1 {[%clk 0:02:11]}  Rf5 {[%clk 0:00:36]} 31. Rc3 {[%clk 0:02:10]}  Rf3 {[%clk 0:00:27]} 32. Rxf3 {[%clk 0:01:29]}  Nxf3 {[%clk 0:00:28]} 33. Rg6 {[%clk 0:01:27]}  Nh4+ {[%clk 0:00:27]} 0-1


[Site "https://www.chess.com"]

[Event "Titled Tuesday Blitz April 12 Late 2022"]
[White "Gharibyan, Mamikon"]
[Black "Lewicki, Miroslaw"]
[WhiteFideId "13308300"]
[BlackFideId "1113380"]
[WhiteElo "2740"]
[BlackElo "2544"]
[Result "1-0"]
[Round "07"]
[TimeControl "180+1"]
[Date "2022.04.13"]
[WhiteClock "0:00:08"]
[BlackClock "0:00:02"]

1. e4 {[%clk 0:02:51]}  c5 {[%clk 0:02:57]} 2. Nf3 {[%clk 0:02:47]}  d6 {[%clk 0:02:57]} 3. d4 {[%clk 0:02:46]}  cxd4 {[%clk 0:02:57]} 4. Qxd4 {[%clk 0:02:47]}  Bd7 {[%clk 0:02:56]} 5. Be2 {[%clk 0:02:45]}  Nc6 {[%clk 0:02:56]} 6. Qe3 {[%clk 0:02:45]}  Nf6 {[%clk 0:02:56]} 7. O-O {[%clk 0:02:45]}  g6 {[%clk 0:02:57]} 8. h3 {[%clk 0:02:45]}  Bg7 {[%clk 0:02:57]} 9. Rd1 {[%clk 0:02:46]}  O-O {[%clk 0:02:57]} 10. Nc3 {[%clk 0:02:47]}  a6 {[%clk 0:02:55]} 11. Bd2 {[%clk 0:02:33]}  b5 {[%clk 0:02:54]} 12. a4 {[%clk 0:02:26]}  b4 {[%clk 0:02:48]} 13. Nd5 {[%clk 0:02:25]}  a5 {[%clk 0:02:47]} 14. c3 {[%clk 0:02:12]}  bxc3 {[%clk 0:02:25]} 15. Bxc3 {[%clk 0:02:10]}  Nh5 {[%clk 0:01:48]} 16. Bxg7 {[%clk 0:02:04]}  Nxg7 {[%clk 0:01:47]} 17. Bc4 {[%clk 0:02:00]}  Rb8 {[%clk 0:01:39]} 18. b3 {[%clk 0:02:00]}  Ne6 {[%clk 0:01:39]} 19. Qh6 {[%clk 0:01:55]}  Ne5 {[%clk 0:01:26]} 20. Nxe5 {[%clk 0:01:47]}  dxe5 {[%clk 0:01:27]} 21. h4 {[%clk 0:01:31]}  Kh8 {[%clk 0:01:19]} 22. h5 {[%clk 0:01:30]}  g5 {[%clk 0:01:19]} 23. Ne3 {[%clk 0:01:25]}  Rb6 {[%clk 0:01:13]} 24. Ng4 {[%clk 0:01:03]}  f6 {[%clk 0:00:48]} 25. Bxe6 {[%clk 0:01:01]}  Rxe6 {[%clk 0:00:48]} 26. Ne3 {[%clk 0:00:58]}  Rd6 {[%clk 0:00:43]} 27. Rxd6 {[%clk 0:00:45]}  exd6 {[%clk 0:00:42]} 28. Rd1 {[%clk 0:00:33]}  Be6 {[%clk 0:00:41]} 29. Nc4 {[%clk 0:00:33]}  Bxc4 {[%clk 0:00:41]} 30. bxc4 {[%clk 0:00:34]}  Qe7 {[%clk 0:00:38]} 31. Rd5 {[%clk 0:00:33]}  Ra8 {[%clk 0:00:33]} 32. g3 {[%clk 0:00:31]}  Kg8 {[%clk 0:00:18]} 33. Rd3 {[%clk 0:00:30]}  Qe6 {[%clk 0:00:15]} 34. Rf3 {[%clk 0:00:28]}  Rf8 {[%clk 0:00:14]} 35. Rf5 {[%clk 0:00:26]}  Rf7 {[%clk 0:00:11]} 36. Rxg5+ {[%clk 0:00:25]}  Kh8 {[%clk 0:00:12]} 37. Rf5 {[%clk 0:00:22]}  Qxc4 {[%clk 0:00:12]} 38. Rxf6 {[%clk 0:00:22]}  Rxf6 {[%clk 0:00:04]} 39. Qxf6+ {[%clk 0:00:23]}  Kg8 {[%clk 0:00:05]} 40. h6 {[%clk 0:00:23]}  Qc7 {[%clk 0:00:02]} 41. Kg2 {[%clk 0:00:22]}  Qd7 {[%clk 0:00:02]} 42. Kh2 {[%clk 0:00:22]}  Qc7 {[%clk 0:00:01]} 43. Kh3 {[%clk 0:00:22]}  Qd7+ {[%clk 0:00:02]} 44. Kh4 {[%clk 0:00:22]}  Qc7 {[%clk 0:00:02]} 45. f4 {[%clk 0:00:23]}  exf4 {[%clk 0:00:03]} 46. gxf4 {[%clk 0:00:24]}  Qd7 {[%clk 0:00:03]} 47. Kg5 {[%clk 0:00:23]}  d5 {[%clk 0:00:03]} 48. e5 {[%clk 0:00:12]}  d4 {[%clk 0:00:03]} 49. e6 {[%clk 0:00:12]}  Qd5+ {[%clk 0:00:03]} 50. f5 {[%clk 0:00:10]}  Qg2+ {[%clk 0:00:03]} 51. Kf4 {[%clk 0:00:11]}  Qf2+ {[%clk 0:00:02]} 52. Ke4 {[%clk 0:00:11]}  Qe3+ {[%clk 0:00:01]} 53. Kd5 {[%clk 0:00:11]}  Qb3+ {[%clk 0:00:02]} 54. Ke5 {[%clk 0:00:09]}  Qe3+ {[%clk 0:00:02]} 55. Kd6 {[%clk 0:00:09]}  Qa3+ {[%clk 0:00:01]} 56. Kd7 {[%clk 0:00:07]}  Qxa4+ {[%clk 0:00:02]} 57. Kd8 {[%clk 0:00:08]} 1-0


[Site "https://www.chess.com"]

[Event "Titled Tuesday Blitz April 12 Late 2022"]
[White "Hardaway, Brewington"]
[Black "Bas Mas, Jose Joaquin"]
[WhiteFideId "30941849"]
[BlackFideId "22219064"]
[WhiteElo "2595"]
[BlackElo "2382"]
[Result "0-1"]
[Round "07"]
[TimeControl "180+1"]
[Date "2022.04.13"]
[WhiteClock "0:00:09"]
[BlackClock "0:00:15"]

1. Nf3 {[%clk 0:03:00]}  e6 {[%clk 0:02:49]} 2. e3 {[%clk 0:03:00]}  f5 {[%clk 0:02:48]} 3. b3 {[%clk 0:02:55]}  Nf6 {[%clk 0:02:48]} 4. Bb2 {[%clk 0:02:54]}  Be7 {[%clk 0:02:48]} 5. d4 {[%clk 0:02:54]}  b6 {[%clk 0:02:49]} 6. Bd3 {[%clk 0:02:53]}  Bb7 {[%clk 0:02:49]} 7. c4 {[%clk 0:02:53]}  O-O {[%clk 0:02:48]} 8. d5 {[%clk 0:02:54]}  Ne4 {[%clk 0:02:38]} 9. Nd4 {[%clk 0:02:44]}  Bb4+ {[%clk 0:02:21]} 10. Kf1 {[%clk 0:02:36]}  exd5 {[%clk 0:02:15]} 11. f3 {[%clk 0:02:35]}  Nd6 {[%clk 0:02:10]} 12. cxd5 {[%clk 0:02:33]}  Bxd5 {[%clk 0:02:06]} 13. Bc2 {[%clk 0:02:24]}  Bb7 {[%clk 0:02:00]} 14. a3 {[%clk 0:02:16]}  Bc5 {[%clk 0:01:59]} 15. b4 {[%clk 0:02:17]}  Bxd4 {[%clk 0:01:58]} 16. Qxd4 {[%clk 0:02:17]}  Qe7 {[%clk 0:01:55]} 17. Nc3 {[%clk 0:02:12]}  Nc6 {[%clk 0:01:42]} 18. Qf4 {[%clk 0:02:01]}  Ne5 {[%clk 0:01:36]} 19. Bb3+ {[%clk 0:01:48]}  Kh8 {[%clk 0:01:35]} 20. Rd1 {[%clk 0:01:48]}  Rae8 {[%clk 0:01:29]} 21. Nd5 {[%clk 0:01:44]}  Bxd5 {[%clk 0:01:27]} 22. Rxd5 {[%clk 0:01:45]}  Ng6 {[%clk 0:01:24]} 23. Qd4 {[%clk 0:01:39]}  Rf6 {[%clk 0:01:15]} 24. Qd2 {[%clk 0:01:25]}  Re6 {[%clk 0:01:11]} 25. Bc1 {[%clk 0:01:00]}  Ne5 {[%clk 0:00:56]} 26. Rd4 {[%clk 0:00:56]}  Rg6 {[%clk 0:00:52]} 27. Bb2 {[%clk 0:00:53]}  Nc6 {[%clk 0:00:50]} 28. Rd3 {[%clk 0:00:48]}  Qg5 {[%clk 0:00:46]} 29. h4 {[%clk 0:00:44]}  Qh5 {[%clk 0:00:39]} 30. Rd5 {[%clk 0:00:30]}  Rge6 {[%clk 0:00:29]} 31. Kf2 {[%clk 0:00:20]}  Qh6 {[%clk 0:00:27]} 32. Rd3 {[%clk 0:00:16]}  Ne5 {[%clk 0:00:25]} 33. Rd5 {[%clk 0:00:14]}  Nec4 {[%clk 0:00:23]} 34. Bxc4 {[%clk 0:00:07]}  Nxc4 {[%clk 0:00:24]} 35. Qd4 {[%clk 0:00:07]}  Nxb2 {[%clk 0:00:23]} 36. Rxd7 {[%clk 0:00:07]}  Qxe3+ {[%clk 0:00:20]} 37. Qxe3 {[%clk 0:00:08]}  Rxe3 {[%clk 0:00:21]} 38. h5 {[%clk 0:00:09]}  Re2+ {[%clk 0:00:21]} 39. Kg3 {[%clk 0:00:09]}  Nc4 {[%clk 0:00:21]} 40. h6 {[%clk 0:00:08]}  R2e7 {[%clk 0:00:20]} 41. hxg7+ {[%clk 0:00:08]}  Rxg7+ {[%clk 0:00:20]} 42. Rxg7 {[%clk 0:00:09]}  Kxg7 {[%clk 0:00:21]} 43. Rc1 {[%clk 0:00:10]}  b5 {[%clk 0:00:20]} 44. a4 {[%clk 0:00:10]}  c6 {[%clk 0:00:19]} 45. axb5 {[%clk 0:00:11]}  cxb5 {[%clk 0:00:20]} 46. Ra1 {[%clk 0:00:12]}  Re7 {[%clk 0:00:19]} 47. Kf4 {[%clk 0:00:12]}  Kf6 {[%clk 0:00:18]} 48. Ra6+ {[%clk 0:00:13]}  Re6 {[%clk 0:00:17]} 49. Rxa7 {[%clk 0:00:12]}  Kg6 {[%clk 0:00:16]} 50. Rb7 {[%clk 0:00:11]}  Nd6 {[%clk 0:00:16]} 51. Rb6 {[%clk 0:00:11]}  Rf6 {[%clk 0:00:15]} 52. Rb8 {[%clk 0:00:09]}  h6 {[%clk 0:00:15]} 53. Rg8+ {[%clk 0:00:09]}  Kf7 {[%clk 0:00:15]} 54. Ra8 {[%clk 0:00:09]}  Ke6 {[%clk 0:00:15]} 55. Ra6 {[%clk 0:00:09]}  Kd5 {[%clk 0:00:15]} 56. Ke3 {[%clk 0:00:09]}  Nc4+ {[%clk 0:00:15]} 0-1


[Site "https://www.chess.com"]